[Event "*** Titled Tuesday Blitz"]
[Site "Chess.com"]
[Date "2020.01.07"]
[Round "5"]
[White "chigorin28"]
[Black "lucasran"]
[Result "1-0"]
[WhiteElo "2464"]
[BlackElo "2652"]
[TimeControl "180+2"]
[EndTime "14:06:25 PST"]
[Termination "chigorin28 won by resignation"]

1. e4 {[%clk 0:03:01.9]} 1... c6 {[%clk 0:03:00.8]} 2. d4 {[%clk 0:03:02.5]}
2... d5 {[%clk 0:03:02.7]} 3. e5 {[%clk 0:03:02.8]} 3... Bf5 {[%clk 0:03:03.2]}
4. Nc3 {[%clk 0:03:04.2]} 4... e6 {[%clk 0:03:03.6]} 5. g4 {[%clk 0:03:05.5]}
5... Bg6 {[%clk 0:03:04.7]} 6. h4 {[%clk 0:03:06.6]} 6... h5 {[%clk 0:03:05.2]}
7. g5 {[%clk 0:03:05.2]} 7... Ne7 {[%clk 0:03:03.6]} 8. Nf3 {[%clk 0:03:04]}
8... a6 {[%clk 0:03:01.2]} 9. Bd3 {[%clk 0:03:04.8]} 9... Bxd3 {[%clk
0:03:01.6]} 10. Qxd3 {[%clk 0:03:06.7]} 10... g6 {[%clk 0:03:02.6]} 11. O-O
{[%clk 0:03:05.5]} 11... Nf5 {[%clk 0:03:03.7]} 12. Ne2 {[%clk 0:03:04.5]} 12...
c5 {[%clk 0:02:55.4]} 13. c3 {[%clk 0:03:05.8]} 13... Nc6 {[%clk 0:02:55.6]} 14.
Ng3 {[%clk 0:03:04.9]} 14... c4 {[%clk 0:02:50.9]} 15. Qc2 {[%clk 0:03:03.8]}
15... Nce7 {[%clk 0:02:50.8]} 16. b3 {[%clk 0:03:02.5]} 16... b5 {[%clk
0:02:51.4]} 17. Ba3 {[%clk 0:03:01]} 17... Nxg3 {[%clk 0:02:50.3]} 18. Bxe7
{[%clk 0:02:54.2]} 18... Ne2+ {[%clk 0:02:40]} 19. Qxe2 {[%clk 0:02:54.9]} 19...
Bxe7 {[%clk 0:02:40.5]} 20. bxc4 {[%clk 0:02:53.3]} 20... bxc4 {[%clk
0:02:40.1]} 21. Rfb1 {[%clk 0:02:54.1]} 21... Rb8 {[%clk 0:02:36.9]} 22. Rxb8
{[%clk 0:02:52.2]} 22... Qxb8 {[%clk 0:02:38.8]} 23. Qc2 {[%clk 0:02:53.6]}
23... O-O {[%clk 0:02:34]} 24. Rb1 {[%clk 0:02:55]} 24... Qc7 {[%clk 0:02:34.5]}
25. Qb2 {[%clk 0:02:55.4]} 25... Qa5 {[%clk 0:02:30.4]} 26. Kg2 {[%clk
0:02:56.6]} 26... Re8 {[%clk 0:02:22.3]} 27. Ng1 {[%clk 0:02:53.5]} 27... Ba3
{[%clk 0:02:17.9]} 28. Qc2 {[%clk 0:02:51.7]} 28... Kg7 {[%clk 0:01:54.6]} 29.
Ne2 {[%clk 0:02:52.3]} 29... Rc8 {[%clk 0:01:34.4]} 30. Rb7 {[%clk 0:02:45.9]}
30... Bf8 {[%clk 0:01:33.8]} 31. Nf4 {[%clk 0:02:44]} 31... Rc7 {[%clk
0:01:10.4]} 32. Rxc7 {[%clk 0:02:27.9]} 32... Qxc7 {[%clk 0:01:12.3]} 33. Qxg6+
{[%clk 0:02:28.9]} 33... Kh8 {[%clk 0:01:09.1]} 34. Qxh5+ {[%clk 0:02:29.5]}
34... Kg8 {[%clk 0:01:10.4]} 35. g6 {[%clk 0:02:27.7]} 35... fxg6 {[%clk
0:00:51.7]} 36. Qxg6+ {[%clk 0:02:29.6]} 36... Kh8 {[%clk 0:00:53.2]} 37. Nxe6
{[%clk 0:02:22.8]} 37... Qe7 {[%clk 0:00:53.5]} 38. Qf6+ {[%clk 0:02:16.2]} 1-0

[Event "*** Titled Tuesday Blitz"]
[Site "Chess.com"]
[Date "2020.01.07"]
[Round "5"]
[White "Blagorod"]
[Black "semchik73"]
[Result "1-0"]
[WhiteElo "2107"]
[BlackElo "2306"]
[TimeControl "180+2"]
[EndTime "14:06:31 PST"]
[Termination "Blagorod won by resignation"]

1. e4 {[%clk 0:03:01.9]} 1... Nf6 {[%clk 0:03:00.8]} 2. e5 {[%clk 0:03:01.7]}
2... Nd5 {[%clk 0:03:01.8]} 3. Nc3 {[%clk 0:03:02.5]} 3... e6 {[%clk 0:03:02.3]}
4. Nf3 {[%clk 0:02:56.2]} 4... d6 {[%clk 0:03:03]} 5. exd6 {[%clk 0:02:48.7]}
5... Bxd6 {[%clk 0:03:02.5]} 6. Nxd5 {[%clk 0:02:50.2]} 6... exd5 {[%clk
0:03:03.2]} 7. Be2 {[%clk 0:02:44.8]} 7... O-O {[%clk 0:03:03.4]} 8. O-O {[%clk
0:02:46.4]} 8... c5 {[%clk 0:03:04.5]} 9. d4 {[%clk 0:02:45.2]} 9... Nc6 {[%clk
0:03:05.2]} 10. Be3 {[%clk 0:02:39.8]} 10... c4 {[%clk 0:03:03.7]} 11. c3 {[%clk
0:02:32]} 11... Bf5 {[%clk 0:03:02.7]} 12. b3 {[%clk 0:02:19.3]} 12... b5 {[%clk
0:02:58.1]} 13. a4 {[%clk 0:02:08.6]} 13... a6 {[%clk 0:02:58.8]} 14. axb5
{[%clk 0:01:38.4]} 14... axb5 {[%clk 0:02:59.3]} 15. bxc4 {[%clk 0:01:36.2]}
15... bxc4 {[%clk 0:02:58.7]} 16. Qd2 {[%clk 0:01:36]} 16... Qb6 {[%clk
0:02:54.6]} 17. Bf4 {[%clk 0:01:30.7]} 17... Na5 {[%clk 0:02:52.8]} 18. Bxd6
{[%clk 0:01:17.7]} 18... Qxd6 {[%clk 0:02:53.8]} 19. Qg5 {[%clk 0:01:06.4]}
19... Bg6 {[%clk 0:02:49.1]} 20. Nh4 {[%clk 0:01:01.8]} 20... Nb3 {[%clk
0:02:49.1]} 21. Rxa8 {[%clk 0:01:01.1]} 21... Rxa8 {[%clk 0:02:49.7]} 22. Nxg6
{[%clk 0:01:02.2]} 22... hxg6 {[%clk 0:02:49.8]} 23. Bf3 {[%clk 0:00:59.3]}
23... Rd8 {[%clk 0:02:44.8]} 24. Re1 {[%clk 0:00:54.9]} 24... Qf6 {[%clk
0:02:43.5]} 25. Re5 {[%clk 0:00:34.5]} 25... Nd2 {[%clk 0:02:27.9]} 26. Qxd2
{[%clk 0:00:28.7]} 26... Ra8 {[%clk 0:02:28.4]} 27. Qe1 {[%clk 0:00:27]} 27...
g5 {[%clk 0:02:28.6]} 28. g3 {[%clk 0:00:26.7]} 28... g6 {[%clk 0:02:25.1]} 29.
Re8+ {[%clk 0:00:26.6]} 29... Rxe8 {[%clk 0:02:25.3]} 30. Qxe8+ {[%clk
0:00:27.5]} 30... Kh7 {[%clk 0:02:26.5]} 31. Kg2 {[%clk 0:00:27]} 31... g4
{[%clk 0:02:25]} 32. Bxd5 {[%clk 0:00:26.7]} 32... Kg7 {[%clk 0:02:22.2]} 33.
Qe5 {[%clk 0:00:27.4]} 1-0

[Event "*** Titled Tuesday Blitz"]
[Site "Chess.com"]
[Date "2020.01.07"]
[Round "5"]
[White "Misi_95"]
[Black "FedaMaster"]
[Result "1-0"]
[WhiteElo "2714"]
[BlackElo "2466"]
[TimeControl "180+2"]
[EndTime "14:06:32 PST"]
[Termination "Misi_95 won on time"]

1. e4 {[%clk 0:03:00.4]} 1... d5 {[%clk 0:03:00.1]} 2. exd5 {[%clk 0:02:58.6]}
2... Qxd5 {[%clk 0:03:02]} 3. Nc3 {[%clk 0:02:59.4]} 3... Qd6 {[%clk 0:03:02.9]}
4. d4 {[%clk 0:02:59.7]} 4... Nf6 {[%clk 0:03:03.4]} 5. Nf3 {[%clk 0:02:59.5]}
5... a6 {[%clk 0:03:03.1]} 6. Be2 {[%clk 0:02:59]} 6... b5 {[%clk 0:03:02.4]} 7.
Ne5 {[%clk 0:02:58.5]} 7... Bb7 {[%clk 0:02:58.3]} 8. Bf3 {[%clk 0:02:59.4]}
8... c6 {[%clk 0:02:52.5]} 9. Bf4 {[%clk 0:02:58.1]} 9... Qd8 {[%clk 0:02:47.7]}
10. O-O {[%clk 0:02:58.6]} 10... e6 {[%clk 0:02:48.2]} 11. Re1 {[%clk
0:02:55.7]} 11... Be7 {[%clk 0:02:41.7]} 12. a4 {[%clk 0:02:52.9]} 12... b4
{[%clk 0:02:37.9]} 13. Ne2 {[%clk 0:02:46]} 13... Nd5 {[%clk 0:02:26.2]} 14. Bd2
{[%clk 0:02:45]} 14... Nd7 {[%clk 0:02:21.3]} 15. Nd3 {[%clk 0:02:41.8]} 15...
a5 {[%clk 0:02:14.1]} 16. c4 {[%clk 0:02:42.4]} 16... bxc3 {[%clk 0:01:44.3]}
17. bxc3 {[%clk 0:02:44.3]} 17... Ba6 {[%clk 0:01:44.4]} 18. Qc2 {[%clk
0:02:40.6]} 18... Rc8 {[%clk 0:01:17.1]} 19. c4 {[%clk 0:02:39.6]} 19... Nb4
{[%clk 0:01:06.8]} 20. Nxb4 {[%clk 0:02:35.9]} 20... axb4 {[%clk 0:01:05.7]} 21.
Rab1 {[%clk 0:02:37.2]} 21... c5 {[%clk 0:01:01.9]} 22. d5 {[%clk 0:02:37.7]}
22... Ne5 {[%clk 0:00:48.4]} 23. dxe6 {[%clk 0:02:31.8]} 23... Nxf3+ {[%clk
0:00:46.4]} 24. gxf3 {[%clk 0:02:33.7]} 24... O-O {[%clk 0:00:41.7]} 25. Nf4
{[%clk 0:02:31.4]} 25... Bd6 {[%clk 0:00:27.1]} 26. Nd5 {[%clk 0:02:22.8]} 26...
fxe6 {[%clk 0:00:17.1]} 27. Rxe6 {[%clk 0:02:24.7]} 27... Rxf3 {[%clk
0:00:12.2]} 28. Qe4 {[%clk 0:02:21.7]} 1-0

[Event "*** Titled Tuesday Blitz"]
[Site "Chess.com"]
[Date "2020.01.07"]
[Round "5"]
[White "VincentKeymer"]
[Black "Hadza_3"]
[Result "1-0"]
[WhiteElo "2688"]
[BlackElo "2397"]
[TimeControl "180+2"]
[EndTime "14:07:04 PST"]
[Termination "VincentKeymer won by resignation"]

1. Nf3 {[%clk 0:03:01.9]} 1... Nf6 {[%clk 0:03:00.4]} 2. g3 {[%clk 0:03:03.3]}
2... g6 {[%clk 0:03:01.2]} 3. Bg2 {[%clk 0:03:05.2]} 3... Bg7 {[%clk 0:03:02.5]}
4. O-O {[%clk 0:03:07.1]} 4... d6 {[%clk 0:03:04.1]} 5. d4 {[%clk 0:03:07]} 5...
c6 {[%clk 0:03:06]} 6. c4 {[%clk 0:03:08.5]} 6... O-O {[%clk 0:03:06.2]} 7. Nc3
{[%clk 0:03:10]} 7... Qa5 {[%clk 0:03:07.7]} 8. e4 {[%clk 0:03:03.3]} 8... e5
{[%clk 0:02:57]} 9. h3 {[%clk 0:02:58.1]} 9... Nbd7 {[%clk 0:02:52]} 10. Be3
{[%clk 0:02:55]} 10... Re8 {[%clk 0:02:48.2]} 11. Re1 {[%clk 0:02:47]} 11... Nf8
{[%clk 0:02:37.5]} 12. d5 {[%clk 0:02:42.7]} 12... c5 {[%clk 0:02:29.2]} 13. a3
{[%clk 0:02:34.4]} 13... Qd8 {[%clk 0:02:17.3]} 14. b4 {[%clk 0:02:31.8]} 14...
b6 {[%clk 0:02:18.2]} 15. Qd3 {[%clk 0:02:27.6]} 15... N6d7 {[%clk 0:02:10.8]}
16. Reb1 {[%clk 0:02:23]} 16... Ba6 {[%clk 0:01:45.4]} 17. Nd2 {[%clk
0:02:18.5]} 17... Qc7 {[%clk 0:01:16.2]} 18. Nb5 {[%clk 0:02:14.3]} 18... Bxb5
{[%clk 0:01:00.2]} 19. cxb5 {[%clk 0:02:16.2]} 19... Rac8 {[%clk 0:00:53.1]} 20.
Rc1 {[%clk 0:02:11.7]} 20... h6 {[%clk 0:00:47]} 21. Rc2 {[%clk 0:02:09.3]}
21... Nh7 {[%clk 0:00:46.3]} 22. Rac1 {[%clk 0:02:08.1]} 22... Qb7 {[%clk
0:00:38.9]} 23. h4 {[%clk 0:02:03.7]} 23... Nhf8 {[%clk 0:00:33]} 24. Bh3 {[%clk
0:02:02.5]} 24... Rc7 {[%clk 0:00:34.3]} 25. Kg2 {[%clk 0:02:01.7]} 25... Rb8
{[%clk 0:00:28.2]} 26. Nc4 {[%clk 0:01:59.6]} 26... cxb4 {[%clk 0:00:21.1]} 27.
Nxd6 {[%clk 0:01:58.4]} 27... Rxc2 {[%clk 0:00:19.1]} 28. Rxc2 {[%clk 0:01:58]}
28... Qa8 {[%clk 0:00:19.3]} 29. axb4 {[%clk 0:01:59.1]} 29... Rd8 {[%clk
0:00:19.5]} 30. Rc7 {[%clk 0:01:55.4]} 30... Nf6 {[%clk 0:00:13.9]} 31. Nxf7
{[%clk 0:01:52.8]} 31... Rc8 {[%clk 0:00:15]} 32. Rxc8 {[%clk 0:01:52.3]} 1-0

[Event "*** Titled Tuesday Blitz"]
[Site "Chess.com"]
[Date "2020.01.07"]
[Round "5"]
[White "Witik"]
[Black "LimeInTheCoconut"]
[Result "1-0"]
[WhiteElo "2671"]
[BlackElo "2451"]
[TimeControl "180+2"]
[EndTime "14:07:07 PST"]
[Termination "Witik won by resignation"]

1. e4 {[%clk 0:03:01.9]} 1... e5 {[%clk 0:03:00.3]} 2. Nf3 {[%clk 0:03:02.2]}
2... Nc6 {[%clk 0:03:01]} 3. Nc3 {[%clk 0:03:03.1]} 3... Nf6 {[%clk 0:03:01.8]}
4. Bb5 {[%clk 0:03:03.6]} 4... Bc5 {[%clk 0:03:02]} 5. Nxe5 {[%clk 0:03:03.2]}
5... Nxe5 {[%clk 0:03:00.2]} 6. d4 {[%clk 0:03:04]} 6... Bd6 {[%clk 0:02:33.7]}
7. f4 {[%clk 0:03:04]} 7... Nc6 {[%clk 0:02:20.8]} 8. e5 {[%clk 0:03:04.3]} 8...
O-O {[%clk 0:02:20.5]} 9. O-O {[%clk 0:03:01.9]} 9... a6 {[%clk 0:02:14.2]} 10.
Bc4 {[%clk 0:02:39.3]} 10... Bb4 {[%clk 0:02:07.7]} 11. exf6 {[%clk 0:02:36.4]}
11... Bxc3 {[%clk 0:02:07.5]} 12. bxc3 {[%clk 0:02:32]} 12... Qxf6 {[%clk
0:01:52.5]} 13. f5 {[%clk 0:02:29.4]} 13... Ne7 {[%clk 0:01:40.3]} 14. Qh5
{[%clk 0:02:23.4]} 14... h6 {[%clk 0:01:34.7]} 15. g4 {[%clk 0:02:19.2]} 15...
Qc6 {[%clk 0:01:18.2]} 16. f6 {[%clk 0:01:55.2]} 16... Qxc4 {[%clk 0:01:01.1]}
17. Bxh6 {[%clk 0:01:25.1]} 17... Ng6 {[%clk 0:00:36]} 18. fxg7 {[%clk
0:00:58.3]} 18... Re8 {[%clk 0:00:35.5]} 19. Bg5 {[%clk 0:00:59.3]} 19... Kxg7
{[%clk 0:00:20.4]} 20. Bf6+ {[%clk 0:01:00.3]} 20... Kg8 {[%clk 0:00:21.6]} 21.
Qh6 {[%clk 0:01:01.4]} 1-0

[Event "*** Titled Tuesday Blitz"]
[Site "Chess.com"]
[Date "2020.01.07"]
[Round "5"]
[White "2nd_life"]
[Black "davigator"]
[Result "1-0"]
[WhiteElo "2501"]
[BlackElo "2333"]
[TimeControl "180+2"]
[EndTime "14:07:10 PST"]
[Termination "2nd_life won by resignation"]

1. e4 {[%clk 0:03:01.9]} 1... c5 {[%clk 0:02:58.8]} 2. Nf3 {[%clk 0:03:02.6]}
2... Nc6 {[%clk 0:02:59.3]} 3. d4 {[%clk 0:03:01.3]} 3... cxd4 {[%clk
0:03:00.2]} 4. Nxd4 {[%clk 0:03:03.2]} 4... Nf6 {[%clk 0:03:01.1]} 5. Nc3 {[%clk
0:03:03.9]} 5... d6 {[%clk 0:03:02.2]} 6. f3 {[%clk 0:03:01.1]} 6... e5 {[%clk
0:03:02.4]} 7. Nb3 {[%clk 0:02:58.2]} 7... Be7 {[%clk 0:03:02.8]} 8. Be3 {[%clk
0:02:55]} 8... Be6 {[%clk 0:03:03.1]} 9. Nd5 {[%clk 0:02:53.3]} 9... Bxd5 {[%clk
0:03:03.4]} 10. exd5 {[%clk 0:02:53.7]} 10... Nb8 {[%clk 0:03:05.3]} 11. Qd2
{[%clk 0:02:45.9]} 11... Nbd7 {[%clk 0:03:05.1]} 12. Na5 {[%clk 0:02:42.9]}
12... Qc7 {[%clk 0:02:58.9]} 13. c4 {[%clk 0:02:43.3]} 13... O-O {[%clk
0:02:58.6]} 14. Be2 {[%clk 0:02:42.4]} 14... e4 {[%clk 0:02:57.5]} 15. f4 {[%clk
0:02:39.6]} 15... Nc5 {[%clk 0:02:47.2]} 16. b4 {[%clk 0:02:29]} 16... Na4
{[%clk 0:02:14.5]} 17. O-O {[%clk 0:02:25]} 17... Rfe8 {[%clk 0:02:13.4]} 18.
Rac1 {[%clk 0:02:21.2]} 18... Nd7 {[%clk 0:02:11.7]} 19. Rfd1 {[%clk 0:02:16.9]}
19... Bf6 {[%clk 0:01:57.9]} 20. Rc2 {[%clk 0:02:05.3]} 20... g6 {[%clk
0:01:51.3]} 21. g4 {[%clk 0:01:47.2]} 21... Rac8 {[%clk 0:01:40.9]} 22. g5
{[%clk 0:01:47]} 22... Bg7 {[%clk 0:01:40.8]} 23. h4 {[%clk 0:01:47.2]} 23...
Nb8 {[%clk 0:01:36]} 24. Bg4 {[%clk 0:01:41.2]} 24... Rcd8 {[%clk 0:01:35.8]}
25. f5 {[%clk 0:01:41.5]} 25... Be5 {[%clk 0:01:33.7]} 26. fxg6 {[%clk
0:01:28.9]} 26... hxg6 {[%clk 0:01:33.7]} 27. Bxa7 {[%clk 0:01:23]} 27... b6
{[%clk 0:01:28.6]} 28. Bxb8 {[%clk 0:01:23.8]} 28... Rxb8 {[%clk 0:01:29.9]} 29.
Nc6 {[%clk 0:01:24.8]} 29... Ra8 {[%clk 0:01:31.2]} 30. Rf1 {[%clk 0:01:19.5]}
30... e3 {[%clk 0:01:30.7]} 31. Qe2 {[%clk 0:01:17.1]} 31... Bg7 {[%clk
0:01:30]} 32. Re1 {[%clk 0:01:12.3]} 32... Nc3 {[%clk 0:01:30.3]} 33. Qf3 {[%clk
0:01:12.3]} 33... Rxa2 {[%clk 0:01:28.7]} 34. Rxa2 {[%clk 0:01:12.5]} 34... Nxa2
{[%clk 0:01:29]} 35. Rxe3 {[%clk 0:01:13.3]} 35... Qb8 {[%clk 0:01:14.3]} 36.
Nxb8 {[%clk 0:01:09.7]} 1-0

[Event "*** Titled Tuesday Blitz"]
[Site "Chess.com"]
[Date "2020.01.07"]
[Round "5"]
[White "gena217"]
[Black "GMHess"]
[Result "1-0"]
[WhiteElo "2955"]
[BlackElo "2760"]
[TimeControl "180+2"]
[EndTime "14:07:24 PST"]
[Termination "gena217 won by resignation"]

1. e4 {[%clk 0:03:01.9]} 1... d6 {[%clk 0:03:00.9]} 2. d4 {[%clk 0:03:02.3]}
2... Nf6 {[%clk 0:03:02.8]} 3. Nc3 {[%clk 0:03:02.3]} 3... c6 {[%clk 0:03:01.8]}
4. Nf3 {[%clk 0:03:02.5]} 4... Bg4 {[%clk 0:03:02.6]} 5. h3 {[%clk 0:03:03.3]}
5... Bh5 {[%clk 0:03:00.6]} 6. g4 {[%clk 0:02:46]} 6... Bg6 {[%clk 0:03:01.7]}
7. Qe2 {[%clk 0:02:46.7]} 7... e6 {[%clk 0:02:55.3]} 8. g5 {[%clk 0:02:39.6]}
8... Nfd7 {[%clk 0:02:52.9]} 9. Nh4 {[%clk 0:02:37.8]} 9... e5 {[%clk
0:02:31.8]} 10. dxe5 {[%clk 0:02:14.2]} 10... dxe5 {[%clk 0:02:33.7]} 11. Bd2
{[%clk 0:02:14.7]} 11... Nc5 {[%clk 0:02:22.7]} 12. O-O-O {[%clk 0:02:14.5]}
12... Ne6 {[%clk 0:02:23.9]} 13. Be3 {[%clk 0:02:00.5]} 13... Qa5 {[%clk
0:02:11.6]} 14. Qg4 {[%clk 0:01:37.9]} 14... Bb4 {[%clk 0:02:06.5]} 15. Bc4
{[%clk 0:01:38.3]} 15... Nd8 {[%clk 0:01:09.6]} 16. Ne2 {[%clk 0:01:38.6]} 16...
O-O {[%clk 0:00:54.1]} 17. Nxg6 {[%clk 0:01:38.7]} 17... hxg6 {[%clk 0:00:56]}
18. h4 {[%clk 0:01:39.6]} 18... b5 {[%clk 0:00:35.7]} 19. Bb3 {[%clk 0:01:39.6]}
19... c5 {[%clk 0:00:35.3]} 20. Bd5 {[%clk 0:01:12.3]} 20... c4 {[%clk
0:00:32.5]} 21. Kb1 {[%clk 0:01:11.6]} 21... Nbc6 {[%clk 0:00:17]} 22. h5 {[%clk
0:01:12.5]} 22... Ne7 {[%clk 0:00:14.6]} 23. hxg6 {[%clk 0:01:12.8]} 23... Nxg6
{[%clk 0:00:12.6]} 24. Qh5 {[%clk 0:01:13.6]} 24... Re8 {[%clk 0:00:12.4]} 25.
Qxg6 {[%clk 0:01:14.2]} 25... Ne6 {[%clk 0:00:13.8]} 26. Qh5 {[%clk 0:01:11.9]}
26... Kf8 {[%clk 0:00:13.4]} 27. g6 {[%clk 0:01:12.3]} 1-0

[Event "*** Titled Tuesday Blitz"]
[Site "Chess.com"]
[Date "2020.01.07"]
[Round "5"]
[White "TwentyHoursADay"]
[Black "chessdjw"]
[Result "0-1"]
[WhiteElo "2413"]
[BlackElo "2651"]
[TimeControl "180+2"]
[EndTime "14:07:31 PST"]
[Termination "chessdjw won by resignation"]

1. c4 {[%clk 0:03:00.5]} 1... e5 {[%clk 0:02:57.8]} 2. g3 {[%clk 0:03:01.3]}
2... c6 {[%clk 0:02:54.9]} 3. d4 {[%clk 0:03:02.1]} 3... e4 {[%clk 0:02:51.4]}
4. d5 {[%clk 0:03:02]} 4... cxd5 {[%clk 0:02:49.1]} 5. cxd5 {[%clk 0:03:01.8]}
5... Nf6 {[%clk 0:02:48.9]} 6. Nc3 {[%clk 0:03:02.8]} 6... Bb4 {[%clk
0:02:48.3]} 7. Bg2 {[%clk 0:03:02.3]} 7... O-O {[%clk 0:02:48.8]} 8. Nh3 {[%clk
0:03:01.1]} 8... d6 {[%clk 0:02:46]} 9. O-O {[%clk 0:02:52]} 9... Bxc3 {[%clk
0:02:42.3]} 10. bxc3 {[%clk 0:02:52.5]} 10... Na6 {[%clk 0:02:44]} 11. Be3
{[%clk 0:02:39.6]} 11... Re8 {[%clk 0:02:42.1]} 12. Qd4 {[%clk 0:01:55.3]} 12...
Nc5 {[%clk 0:02:41]} 13. Bg5 {[%clk 0:01:54.2]} 13... Re5 {[%clk 0:02:33.1]} 14.
f4 {[%clk 0:01:29.1]} 14... exf3 {[%clk 0:02:29.7]} 15. Rxf3 {[%clk 0:01:24.8]}
15... Nce4 {[%clk 0:02:29.7]} 16. Bxf6 {[%clk 0:00:48.2]} 16... Nxf6 {[%clk
0:02:29.3]} 17. Rf2 {[%clk 0:00:40.6]} 17... Bxh3 {[%clk 0:02:26.3]} 18. Bxh3
{[%clk 0:00:41.7]} 18... Rxd5 {[%clk 0:02:27.8]} 19. Qf4 {[%clk 0:00:38]} 19...
Qb6 {[%clk 0:02:27.5]} 20. Rf1 {[%clk 0:00:36.5]} 20... Re8 {[%clk 0:02:27.5]}
21. Kh1 {[%clk 0:00:37.2]} 21... Rde5 {[%clk 0:02:23]} 22. g4 {[%clk 0:00:34.3]}
22... h6 {[%clk 0:02:22.9]} 23. Bg2 {[%clk 0:00:28.5]} 23... Rxe2 {[%clk
0:02:02.5]} 24. Rxe2 {[%clk 0:00:30.4]} 24... Rxe2 {[%clk 0:02:03.7]} 25. h4
{[%clk 0:00:31.8]} 25... Qb2 {[%clk 0:01:50.3]} 26. Rg1 {[%clk 0:00:28.3]} 26...
Qxc3 {[%clk 0:01:33.5]} 27. g5 {[%clk 0:00:29.6]} 27... hxg5 {[%clk 0:01:34.6]}
28. hxg5 {[%clk 0:00:30.3]} 28... Ne4 {[%clk 0:01:26.7]} 29. Kh2 {[%clk
0:00:20.5]} 29... Qe5 {[%clk 0:01:10.7]} 30. Qxe5 {[%clk 0:00:21.3]} 30... dxe5
{[%clk 0:01:12.6]} 31. Rc1 {[%clk 0:00:22.6]} 31... Nxg5 {[%clk 0:01:11.1]} 0-1

[Event "*** Titled Tuesday Blitz"]
[Site "Chess.com"]
[Date "2020.01.07"]
[Round "5"]
[White "M1711"]
[Black "Incognito_Knight"]
[Result "0-1"]
[WhiteElo "2547"]
[BlackElo "2755"]
[TimeControl "180+2"]
[EndTime "14:07:33 PST"]
[Termination "Incognito_Knight won by resignation"]

1. d4 {[%clk 0:03:01.9]} 1... d5 {[%clk 0:03:00.9]} 2. c4 {[%clk 0:03:01.5]}
2... e6 {[%clk 0:03:02.2]} 3. Nc3 {[%clk 0:03:02.1]} 3... a6 {[%clk 0:03:03.7]}
4. cxd5 {[%clk 0:03:01.9]} 4... exd5 {[%clk 0:03:05.6]} 5. Nf3 {[%clk
0:03:02.4]} 5... Nf6 {[%clk 0:03:06.6]} 6. Bg5 {[%clk 0:03:01.5]} 6... Be6
{[%clk 0:03:07.9]} 7. e3 {[%clk 0:03:01.6]} 7... Nbd7 {[%clk 0:03:09.1]} 8. Bd3
{[%clk 0:03:02.1]} 8... Bd6 {[%clk 0:03:10.5]} 9. O-O {[%clk 0:03:02.5]} 9... c6
{[%clk 0:03:12.1]} 10. Qc2 {[%clk 0:02:56.6]} 10... Qc7 {[%clk 0:03:12.2]} 11.
h3 {[%clk 0:02:51.2]} 11... h6 {[%clk 0:03:10.3]} 12. Bxf6 {[%clk 0:02:50.1]}
12... Nxf6 {[%clk 0:03:12.2]} 13. Rab1 {[%clk 0:02:44.2]} 13... g5 {[%clk
0:03:09.7]} 14. Bf5 {[%clk 0:02:38.4]} 14... Qd7 {[%clk 0:02:56.8]} 15. e4
{[%clk 0:02:24]} 15... Bxf5 {[%clk 0:02:41.8]} 16. exf5 {[%clk 0:02:25.9]} 16...
O-O {[%clk 0:02:42.4]} 17. Ne5 {[%clk 0:02:22.1]} 17... Qc7 {[%clk 0:02:41]} 18.
Rfe1 {[%clk 0:02:20.2]} 18... Rae8 {[%clk 0:02:39.7]} 19. Ng4 {[%clk 0:02:03.8]}
19... Nxg4 {[%clk 0:02:36.2]} 20. hxg4 {[%clk 0:02:05.7]} 20... Kg7 {[%clk
0:02:33]} 21. Qd3 {[%clk 0:01:55.6]} 21... Be7 {[%clk 0:02:26.5]} 22. Re2 {[%clk
0:01:51.4]} 22... Bf6 {[%clk 0:02:25.8]} 23. Rbe1 {[%clk 0:01:52.9]} 23... Rxe2
{[%clk 0:02:22.8]} 24. Rxe2 {[%clk 0:01:54.8]} 24... Qf4 {[%clk 0:02:23.6]} 25.
Rd2 {[%clk 0:01:39.2]} 25... Qxg4 {[%clk 0:02:23]} 26. Qe3 {[%clk 0:01:35.6]}
26... Qxf5 {[%clk 0:02:19.6]} 27. Ne2 {[%clk 0:01:25.3]} 27... Qb1+ {[%clk
0:02:03.3]} 28. Kh2 {[%clk 0:01:25.9]} 28... Qe4 {[%clk 0:02:02]} 29. Qxe4
{[%clk 0:01:21.1]} 29... dxe4 {[%clk 0:02:03.9]} 30. Ng3 {[%clk 0:01:22.8]}
30... Rd8 {[%clk 0:01:58.2]} 31. Nf5+ {[%clk 0:01:00.8]} 31... Kg6 {[%clk
0:01:57.4]} 32. Ng3 {[%clk 0:00:56.3]} 32... Rxd4 {[%clk 0:01:49.3]} 33. Re2
{[%clk 0:00:57.5]} 33... Be5 {[%clk 0:01:49.6]} 34. Kh3 {[%clk 0:00:58.6]} 34...
f5 {[%clk 0:01:49.5]} 35. Nf1 {[%clk 0:00:57]} 35... Rd1 {[%clk 0:01:48.1]} 36.
Ng3 {[%clk 0:00:54.6]} 36... g4+ {[%clk 0:01:41.9]} 37. Kh2 {[%clk 0:00:49.9]}
37... h5 {[%clk 0:01:39.6]} 38. f4 {[%clk 0:00:48.7]} 38... Bxf4 {[%clk
0:01:35.2]} 39. Rf2 {[%clk 0:00:48]} 39... Be5 {[%clk 0:01:24.7]} 40. Rd2 {[%clk
0:00:48.4]} 40... Rxd2 {[%clk 0:01:24.7]} 0-1